bitfinex/quotes_ETHUSD_20260312
["timestamp","ask_amount","ask_price","bid_price","bid_amount"]
[1773291898306,1.88873401,2025.5,2025.1,0.001]
[1773291898620,0.65442409,2025.4,2025.1,0.001]
[1773291902895,0.65442409,2025.3,2025.1,0.001]
[1773291903098,0.65442409,2025.6,2025.1,0.29697668]
[1773291903285,1.33134957,2025.6,2025.1,0.29697668]
[1773291903477,0.65442409,2025.5,2025.1,0.001]
[1773291903680,0.65442409,2025.3,2025.1,0.001]
[1773291904707,0.67692548,2025.2,2024.8,0.001]
[1773291905010,0.65442409,2024.9,2024.8,0.001]
[1773291909888,0.65442409,2024.8,2024.6,0.001]
[1773291910498,0.65442409,2025.0,2024.6,0.001]
[1773291910820,0.65442409,2025.0,2024.6,0.30272108]
[1773291912787,1.88905296,2024.9,2024.6,0.30272108]
[1773291913195,1.88905296,2024.9,2024.6,0.001]
[1773291913426,1.23462887,2024.9,2024.6,0.001]
[1773291913737,0.65442409,2024.8,2024.6,0.001]
[1773291916130,0.65442409,2024.7,2024.6,0.001]
[1773291916499,0.65442409,2024.9,2024.6,0.001]
[1773291916802,0.65442409,2024.9,2024.6,0.30671079]
[1773291918115,1.88906943,2024.9,2024.6,0.30671079]
[1773291918441,0.65442409,2024.9,2024.6,0.30671079]
[1773291918636,0.65442409,2024.8,2024.6,0.001]
[1773291919538,0.65442409,2024.7,2024.6,0.001]
[1773291921514,0.66436509,2024.9,2024.6,0.001]
[1773291923429,0.66436509,2024.9,2024.6,0.31159003]
[1773291923751,0.66436509,2024.8,2024.6,0.001]
[1773291925947,0.66436509,2024.6,2024.4,0.001]
[1773291927022,0.66436509,2024.8,2024.4,0.31405359]
[1773291928117,0.66436509,2024.7,2024.4,1.54896928]
[1773291931763,0.66436509,2024.9,2024.5,0.3158068]
[1773291932430,0.66436509,2024.8,2024.5,0.3158068]
[1773291933044,0.66436509,2024.8,2024.6,0.001]
[1773291933246,0.002,2024.7,2024.6,0.001]
[1773291936828,0.002,2024.7,2024.6,0.31941831]
[1773291937288,0.91045169,2025.1,2024.7,0.31841831]
[1773291937490,1.89887797,2025.1,2024.7,0.31841831]
[1773291937650,0.66436509,2025.1,2024.7,0.31841831]
[1773291937849,1.89887275,2025.1,2024.7,0.31841831]
[1773291938488,0.66436509,2025.1,2024.7,0.31841831]
[1773291939299,0.66436509,2025.1,2024.8,0.31942037]
[1773291939452,1.90086779,2025.2,2024.8,0.31942037]
[1773291939652,0.66636509,2025.2,2024.8,0.31942037]
[1773291939864,0.9160935,2025.2,2024.8,0.31942037]
[1773291940081,0.66636509,2025.2,2024.8,0.31942037]
[1773291940603,0.002,2025.2,2024.8,0.31942037]
[1773291942584,0.6550232,2025.2,2024.9,0.32243106]
[1773291942965,0.6550232,2025.2,2024.8,1.23465253]
[1773291943569,0.6550232,2025.2,2024.7,1.23470106]
[1773291944050,0.6530232,2025.0,2024.6,0.001]
[1773291944251,0.6530232,2024.8,2024.6,0.001]
[1773291945486,1.88771413,2024.8,2024.6,0.001]
[1773291945803,0.6530232,2024.8,2024.6,0.001]
[1773291946003,0.6530232,2024.9,2024.6,0.32395457]
[1773291946189,1.88753111,2025.1,2024.6,0.32395457]
[1773291946696,0.6530232,2025.0,2024.6,0.32395457]
[1773291947301,0.6530232,2025.0,2024.7,0.001]
[1773291947476,0.6530232,2025.1,2024.7,0.32440565]
[1773291948302,0.002,2024.8,2024.7,0.32440565]
[1773291949807,0.002,2024.8,2024.7,1.55915647]
[1773291953115,0.002,2025.1,2024.8,0.3248314]
[1773291953287,0.004,2025.1,2024.8,0.3248314]
[1773291954217,0.004,2025.1,2024.8,1.55947526]
[1773291954384,0.004,2025.1,2024.8,1.23464386]
[1773291954588,0.004,2025.1,2024.8,1.56032748]
[1773291955218,0.004,2025.1,2024.9,0.32568362]
[1773291956816,0.004,2025.1,2024.9,1.56030342]
[1773291957117,0.004,2025.1,2024.9,0.32568362]
[1773291958325,0.004,2025.1,2024.9,1.56030959]
[1773291958523,0.004,2025.1,2024.9,0.32568362]
[1773291961742,0.004,2025.1,2024.9,0.32668362]
[1773291962822,0.004,2025.1,2024.9,0.001]
[1773291964238,0.002,2025.0,2024.9,0.001]
[1773291965240,0.65399414,2025.3,2024.9,0.33126219]
[1773291965433,0.65199414,2025.2,2024.9,0.33126219]
[1773291966543,1.88838425,2025.3,2024.9,0.33126219]
[1773291966743,0.65199414,2025.2,2024.9,0.33126219]
[1773291967450,1.8864512,2025.2,2024.9,0.33126219]
[1773291968247,0.65199414,2025.1,2024.9,0.001]
[1773291971424,1.88650789,2025.1,2024.9,0.001]
[1773291971625,0.65199414,2025.0,2024.9,0.001]
[1773291975767,1.2344845,2025.2,2024.9,0.001]
[1773291975966,0.65199414,2025.1,2024.9,0.001]
[1773291976371,0.65399414,2025.1,2024.9,0.001]
[1773291979971,1.88851654,2025.1,2024.9,0.001]
[1773291981074,0.65935744,2025.0,2024.9,0.001]
[1773291981276,0.65935744,2025.0,2024.7,0.001]
[1773291981777,0.65935744,2024.9,2024.7,0.001]
[1773292000824,0.66135744,2024.9,2024.7,0.001]
[1773292004835,0.002,2024.9,2024.7,0.001]
[1773292005038,0.002,2024.9,2024.7,0.67481225]
[1773292005549,0.002,2024.9,2024.7,1.90955629]
[1773292006652,0.002,2024.9,2024.7,0.67481225]
[1773292007017,0.002,2024.9,2024.7,1.9095487]
[1773292007452,0.002,2025.0,2024.8,0.67381225]
[1773292012362,0.65095419,2025.0,2024.7,0.64303277]
[1773292012544,0.002,2024.8,2024.7,1.87778359]
[1773292015071,0.002,2025.0,2024.8,0.64203277]
[1773292018368,0.002,2025.0,2024.7,1.87778359]
[1773292018673,0.65095419,2025.0,2024.7,0.64303277]
[1773292019477,0.64895419,2024.9,2024.7,0.001]
[1773292020352,0.64895419,2024.9,2024.5,0.001]
[1773292020353,0.64895419,2024.8,2024.5,0.001]
[1773292020569,1.23662742,2025.0,2024.2,0.64303277]
[1773292020570,0.64895419,2024.6,2024.2,0.001]
[1773292021655,0.64895419,2024.4,2024.2,0.001]
[1773292024491,1.88390656,2024.4,2024.2,0.001]
[1773292024982,0.64895419,2024.3,2024.2,0.001]
[1773292026559,0.64895419,2024.2,2023.7,0.001]
[1773292026784,0.64895419,2024.2,2023.6,0.64203277]
[1773292027702,0.64895419,2024.2,2023.7,0.64303277]
[1773292027901,2.12881743,2024.6,2024.1,0.64203277]
[1773292028089,0.64895419,2024.4,2023.7,0.64203277]
[1773292028479,1.23499481,2024.3,2023.7,0.64203277]
[1773292028675,0.64895419,2024.2,2023.8,0.001]
[1773292030695,1.88404416,2024.2,2023.8,0.64303277]
[1773292032408,0.64895419,2024.1,2023.8,0.64303277]
[1773292032607,0.64895419,2023.9,2023.5,1.23544198]
[1773292032907,0.64895419,2023.9,2023.6,0.001]
[1773292033209,0.64895419,2023.9,2023.5,1.23648138]
[1773292033421,0.64895419,2023.9,2023.5,1.87851415]
[1773292034121,0.64895419,2023.8,2023.6,0.001]
[1773292034293,0.64895419,2023.8,2023.5,0.001]
[1773292034696,0.64895419,2023.7,2023.5,0.001]
[1773292035019,0.64895419,2023.7,2023.4,0.0011]
[1773292036918,0.64895419,2023.6,2023.4,0.0011]
[1773292037416,0.64895419,2023.6,2023.5,0.001]
[1773292041399,1.23542202,2023.6,2023.2,0.64313277]
[1773292041610,0.65307446,2023.5,2023.2,0.0011]
[1773292044732,1.88857616,2023.5,2023.2,0.0011]
[1773292044918,0.65307446,2023.4,2023.2,0.0011]
[1773292045420,0.65307446,2023.6,2023.2,0.0011]
[1773292046024,0.65307446,2023.5,2023.2,0.0011]
[1773292047436,0.65307446,2023.4,2023.2,0.0011]
[1773292049763,1.88863829,2023.4,2023.2,0.0011]
[1773292050647,1.88863315,2023.4,2023.2,0.0011]
[1773292050961,0.65307446,2023.4,2023.2,0.0011]
[1773292051170,1.88864205,2023.4,2023.2,0.0011]
[1773292051467,0.65307446,2023.4,2023.2,0.0011]
[1773292051663,0.65307446,2023.3,2023.0,0.0011]
[1773292051834,1.88873991,2023.3,2023.0,0.65859995]
[1773292054068,1.23566545,2023.3,2023.0,0.65859995]
[1773292055268,1.88866892,2023.4,2023.0,0.65859995]
[1773292056069,1.88866892,2023.4,2023.0,1.89438718]
[1773292056266,0.65307446,2023.4,2023.1,0.65749995]
[1773292057070,1.88862424,2023.4,2023.1,0.65749995]
[1773292057278,0.001,2023.5,2023.1,0.65749995]
[1773292058080,0.65407446,2023.5,2023.2,1.23566627]
[1773292058381,0.65407446,2023.5,2023.2,1.89316622]
[1773292059081,0.65307446,2023.4,2023.1,0.18475245]
[1773292059258,0.65307446,2023.4,2023.0,1.42159399]
[1773292060278,0.65307446,2023.3,2023.0,0.18585245]
[1773292060481,0.65307446,2023.3,2023.0,1.42163919]
[1773292060873,0.65307446,2023.3,2023.0,0.18585245]
[1773292061265,0.65307446,2023.3,2023.0,1.42163912]
[1773292062054,0.65307446,2023.3,2023.2,0.0011]
[1773292062975,0.61318834,2023.4,2023.2,0.0011]
[1773292065404,0.001,2023.5,2023.2,0.18080632]
[1773292065966,0.61318834,2023.8,2023.3,0.17791262]
[1773292066371,2.0905849,2023.8,2023.3,0.17791262]
[1773292067102,0.85528241,2023.8,2023.3,0.17791262]
[1773292067281,0.61318834,2023.7,2023.4,1.23554413]
[1773292067480,0.61318834,2023.7,2023.4,1.4126742]
[1773292067676,0.24209407,2023.8,2023.5,0.1763574]
[1773292067881,0.61318834,2023.8,2023.5,0.1763574]
[1773292068082,1.84843268,2023.9,2023.5,0.1763574]
[1773292068602,1.84846133,2023.9,2023.5,0.1763574]
[1773292069800,0.61318834,2023.9,2023.5,0.1763574]
[1773292070104,0.61318834,2023.9,2023.5,1.41178409]
[1773292070431,0.002,2024.7,2023.9,0.17826733]
[1773292070575,0.002,2024.7,2023.5,12.75325139]
[1773292070576,0.002,2024.7,2024.4,0.17752637]
[1773292070777,0.61993297,2024.7,2024.4,0.17752637]
[1773292071316,0.002,2024.7,2024.5,0.17752637]
[1773292071525,0.002,2024.8,2024.4,0.6775191]
[1773292071700,0.002,2024.8,2024.5,0.17479373]
[1773292071889,0.002,2024.8,2024.5,1.23484393]
[1773292072298,0.61993297,2024.8,2024.5,1.23484393]
[1773292072829,0.002,2024.8,2024.6,0.17479951]
[1773292074300,0.002,2024.8,2024.6,1.40960545]
[1773292074903,0.002,2024.8,2024.6,0.17479951]
[1773292075092,0.002,2024.8,2024.6,1.40960718]
[1773292078124,0.61993297,2024.8,2024.4,0.17200243]
[1773292078422,0.61993297,2025.0,2024.6,0.17200243]
[1773292078714,0.002,2025.1,2024.8,0.17131073]
[1773292080241,0.002,2025.1,2024.9,0.17062768]
[1773292080456,0.002,2025.3,2025.0,0.17062768]
[1773292080630,0.002,2025.5,2025.2,0.23475685]
[1773292081013,0.002,2025.5,2025.3,0.67756966]
[1773292081225,0.002,2025.5,2025.4,0.23475685]
[1773292081427,0.61993297,2025.7,2025.4,0.23475685]
[1773292081629,0.61793297,2026.1,2025.7,0.59752851]
[1773292082336,1.85174166,2026.3,2025.8,0.59752851]
[1773292082536,0.61793297,2026.2,2025.8,0.59752851]
[1773292082939,0.61793297,2026.2,2025.7,0.59752851]
[1773292083650,0.61793297,2026.2,2025.7,1.27509817]
[1773292084468,0.61793297,2026.3,2025.7,1.83163228]
[1773292085951,0.61793297,2026.3,2025.8,0.59752851]
[1773292086317,1.85174614,2026.3,2025.9,0.001]
[1773292086543,1.85174614,2026.3,2025.9,0.59852851]
[1773292086848,0.002,2026.0,2025.9,0.59852851]
[1773292087046,0.61793297,2026.2,2025.9,0.001]
[1773292087272,1.23364102,2026.6,2026.1,0.59752851]
[1773292087473,0.61793297,2026.6,2026.1,0.59752851]
[1773292087643,0.002,2026.5,2026.1,0.59752851]
[1773292089245,0.002,2026.5,2026.2,0.59752851]
[1773292091000,0.61993297,2026.5,2025.9,1.83253196]
[1773292091180,0.61793297,2026.4,2026.0,0.59752851]
[1773292091771,1.23570777,2026.5,2026.0,0.59752851]
[1773292092379,1.85364074,2026.5,2026.0,0.59752851]
[1773292093779,1.85364074,2026.5,2025.9,0.001]
[1773292093780,0.61793297,2026.4,2025.9,0.001]
[1773292095596,1.85170881,2026.3,2025.9,0.001]
[1773292095798,1.85170881,2026.3,2025.9,0.59852851]
[1773292097277,0.61793297,2026.2,2025.9,0.59852851]
[1773292097801,1.85178729,2026.2,2025.9,0.59852851]
[1773292098167,0.61793297,2026.2,2025.9,0.59852851]
[1773292098373,1.85177331,2026.2,2025.9,0.59852851]
[1773292098770,1.85177331,2026.2,2025.9,0.001]
[1773292098974,0.61793297,2026.1,2025.8,0.59752851]
[1773292099172,0.61793297,2026.1,2025.7,0.001]
[1773292099368,0.61793297,2026.1,2025.7,0.59852851]
[1773292099569,0.61793297,2026.1,2025.7,0.001]
[1773292099808,1.23395853,2026.0,2025.7,0.001]
[1773292100109,0.61793297,2025.9,2025.7,0.001]
[1773292100478,1.23395853,2026.0,2025.7,0.001]
[1773292100677,1.83014989,2026.1,2025.7,0.58164907]
[1773292100901,0.002,2026.2,2025.8,0.58064907]
[1773292100902,1.23586541,2026.2,2025.8,0.58064907]
[1773292101295,0.002,2026.2,2025.8,0.58064907]
[1773292101502,1.2358477,2026.2,2025.8,0.58064907]
[1773292102103,1.8320725,2026.2,2025.7,1.23509073]
[1773292102307,0.5962248,2026.1,2025.7,1.2351306]
[1773292102506,0.5962248,2026.1,2025.7,0.58164907]
[1773292103116,0.5962248,2026.1,2025.7,0.001]
[1773292103486,1.2358477,2026.2,2025.4,0.001]
[1773292103487,0.5962248,2025.8,2025.4,0.001]
[1773292104092,1.23414128,2025.7,2025.4,0.001]
[1773292104490,1.23414128,2025.7,2025.4,0.58164907]
[1773292106416,0.5962248,2026.0,2025.5,0.58064907]
[1773292106914,1.23389763,2026.1,2025.5,0.58064907]
[1773292107217,1.83012243,2026.1,2025.5,0.58064907]
[1773292107392,0.5962248,2026.0,2025.5,0.58064907]
[1773292107919,5.6151602,2026.2,2025.6,0.58064907]
[1773292107920,1.83208418,2026.2,2025.6,0.58064907]
[1773292108718,1.83208418,2026.2,2025.7,0.58064907]
[1773292110492,1.83206955,2026.2,2025.7,0.58064907]
[1773292110895,0.002,2026.2,2026.0,0.58064907]
[1773292111520,0.002,2026.2,2025.9,0.001]
[1773292111723,0.002,2026.0,2025.9,0.001]
[1773292112397,0.5982248,2026.0,2025.9,0.001]
[1773292113097,0.002,2026.0,2025.9,0.001]
[1773292116841,0.5982248,2026.0,2025.9,0.001]
[1773292117007,0.5982248,2026.0,2025.4,1.81596309]
[1773292117345,1.83024424,2025.9,2025.4,0.58164907]
[1773292117534,0.5962248,2025.8,2025.4,0.001]
[1773292118856,0.5982248,2026.0,2025.5,0.58064907]
[1773292119055,1.83219395,2026.0,2025.5,0.58064907]
[1773292119755,1.83219395,2026.0,2025.6,1.81485128]
[1773292120649,0.002,2026.0,2025.7,0.58064907]
[1773292121348,0.5962248,2025.9,2025.5,0.58064907]
[1773292122526,1.83028076,2025.9,2025.5,0.58064907]
[1773292122935,1.23405596,2025.9,2025.5,0.58064907]
[1773292124451,0.002,2025.8,2025.5,0.58064907]
[1773292124867,0.002,2025.8,2025.7,0.001]
[1773292125148,1.79532778,2026.0,2025.7,0.5894669]
[1773292125149,0.002,2026.0,2025.7,0.5894669]
[1773292127856,0.56133381,2026.0,2025.7,0.5894669]
[1773292128062,0.56133381,2026.0,2025.7,0.001]
[1773292128602,0.56133381,2026.0,2025.8,0.5884669]
[1773292128603,0.002,2026.0,2025.8,0.5884669]
[1773292129459,0.002,2026.2,2025.8,0.5884669]
[1773292130127,1.7810434,2026.2,2025.8,0.5884669]
[1773292131130,1.23584312,2026.2,2025.8,0.5884669]
[1773292131329,0.54520028,2026.1,2025.7,0.001]
[1773292132032,0.54520028,2026.1,2025.7,1.23513291]
[1773292132460,0.54520028,2026.1,2025.7,0.001]
[1773292132660,1.77911324,2026.1,2025.7,1.23514057]
[1773292133160,1.77911324,2026.1,2025.7,0.001]
[1773292133869,0.54520028,2026.0,2025.7,0.001]
[1773292135092,1.7791672,2026.0,2025.7,0.001]
[1773292136683,1.7791672,2026.0,2025.9,0.001]
[1773292139594,0.54520028,2026.0,2025.9,0.001]
[1773292139768,1.77915881,2026.0,2025.9,0.001]
[1773292140515,1.78111738,2026.1,2025.9,0.001]
[1773292140914,0.54520028,2026.0,2025.9,0.001]
[1773292142997,0.002,2026.1,2025.9,0.001]
[1773292142998,0.002,2026.1,2025.9,0.56094009]
[1773292143315,0.002,2026.2,2026.0,0.55994009]
[1773292145401,0.002,2026.2,2026.0,1.79389808]
[1773292145610,0.002,2026.2,2026.0,0.55994009]
[1773292146116,0.54720028,2026.2,2025.9,0.001]
[1773292146806,0.54520028,2026.0,2025.9,0.001]
[1773292147012,0.002,2026.2,2025.9,0.56094009]
[1773292148526,0.002,2026.2,2026.1,0.001]
[1773292149222,0.002,2026.3,2026.1,0.56094009]
[1773292149739,0.54720028,2026.3,2026.1,0.001]
[1773292149939,0.54720028,2026.3,2025.7,0.001]
[1773292150124,0.54520028,2026.1,2025.7,0.001]
[1773292150726,0.54520028,2026.1,2025.7,0.56094009]
[1773292151027,0.002,2026.3,2025.7,0.56094009]
[1773292151199,0.54720028,2026.3,2025.7,0.56094009]
[1773292151631,0.54720028,2026.3,2025.7,1.79508114]
[1773292151830,0.54720028,2026.3,2025.7,0.56094009]
[1773292152037,0.002,2026.3,2025.9,0.55994009]
[1773292153121,0.002,2026.3,2026.0,0.55994009]
[1773292154834,0.54720028,2026.3,2025.8,0.55994009]
[1773292155045,0.54720028,2026.3,2025.7,1.79503361]
[1773292155248,1.77903701,2026.2,2025.7,1.79503361]
[1773292155417,0.54520028,2026.2,2025.8,0.55994009]
[1773292155831,1.23582491,2026.3,2025.8,0.55994009]
[1773292156154,1.78102519,2026.3,2025.8,0.55994009]
[1773292157551,1.78102519,2026.3,2025.8,1.7940053]
[1773292157850,0.54520028,2026.2,2025.8,0.55994009]
[1773292158155,0.54520028,2026.2,2025.8,1.79401786]
[1773292158522,0.54520028,2026.2,2025.7,0.001]
[1773292158945,1.23582491,2026.3,2025.8,0.55994009]
[1773292159252,0.54520028,2026.2,2025.8,0.55994009]
[1773292159930,1.77908946,2026.2,2025.8,0.55994009]
[1773292160922,1.77908946,2026.2,2025.9,0.001]
[1773292161140,0.002,2026.0,2025.9,0.001]
[1773292162481,0.51637347,2026.0,2025.7,0.001]
[1773292163752,0.51637347,2026.0,2025.4,0.51093975]
[1773292164242,0.51437347,2025.9,2025.5,0.50993975]
[1773292164670,1.2360044,2026.0,2025.5,0.50993975]
[1773292165178,0.002,2026.0,2025.5,0.50993975]
[1773292167144,0.002,2026.0,2025.7,0.50993975]
[1773292168947,0.51637347,2026.0,2025.5,1.7441582]
[1773292169149,1.75035575,2026.0,2025.6,0.50993975]
[1773292170080,0.51437347,2025.9,2025.6,0.50993975]
[1773292170277,0.51437347,2025.9,2025.5,1.23421845]
[1773292171294,1.23402294,2025.9,2025.5,1.23421845]
[1773292171470,0.51437347,2025.8,2025.4,0.51093975]
[1773292171790,0.51437347,2025.8,2025.4,1.74525754]
[1773292172562,0.51437347,2025.8,2025.4,0.001]
[1773292173491,0.51437347,2025.8,2025.5,0.001]
[1773292173492,0.51437347,2025.6,2025.5,0.001]
[1773292174165,1.74851475,2025.7,2025.5,0.001]
[1773292176206,0.51437347,2025.6,2025.3,0.001]
[1773292177623,1.74863661,2025.5,2025.3,0.001]
[1773292179020,0.51437347,2025.4,2025.3,0.001]
[1773292180495,1.74869755,2025.4,2025.3,0.001]
[1773292182394,0.51837148,2025.3,2024.9,1.74455677]
[1773292182794,0.51837148,2025.3,2024.9,0.50993975]
[1773292183099,0.51837148,2025.3,2024.9,1.74456617]
[1773292184726,0.51837148,2025.3,2024.9,1.23462642]
[1773292184923,0.51837148,2025.3,2025.0,0.50724163]
[1773292185546,1.75251276,2025.7,2025.0,0.50724163]
[1773292185749,0.002,2025.4,2025.0,0.50724163]
[1773292186124,0.002,2025.4,2025.2,0.50724163]
[1773292186324,0.002,2025.4,2025.3,0.001]
[1773292186526,0.002,2025.4,2025.3,0.50824163]
[1773292189256,0.002,2025.4,2025.3,1.74262665]
[1773292193565,0.002,2025.6,2025.4,0.52090733]
[1773292194075,0.002,2025.9,2025.5,0.52090733]
[1773292195742,0.52411279,2025.9,2025.6,0.52090733]
[1773292199280,0.52411279,2025.9,2025.6,1.75510161]
[1773292199479,0.002,2025.9,2025.7,0.52090733]
[1773292199676,0.002,2026.0,2025.8,0.52090733]
[1773292199887,0.002,2026.2,2026.0,0.52090733]
[1773292201082,0.002,2026.2,2026.0,1.75485981]
[1773292201283,0.002,2026.2,2026.0,0.52090733]
[1773292201494,0.002,2026.2,2026.0,1.75486247]
[1773292201898,0.002,2026.2,2026.0,0.52090733]
[1773292202995,0.002,2026.2,2026.0,1.75484681]
[1773292206003,0.002,2026.2,2026.0,0.52090733]
[1773292206215,0.52411279,2026.2,2025.8,1.23405805]
[1773292206518,0.52411279,2026.2,2025.9,0.52090733]
[1773292208037,0.52411279,2026.2,2025.8,0.52090733]
[1773292208235,0.52211279,2026.1,2025.7,0.52090733]
[1773292208530,0.52211279,2026.1,2025.6,1.75510954]
[1773292208733,0.52211279,2026.1,2025.5,1.23523666]
[1773292209118,0.52211279,2026.1,2025.5,0.001]
[1773292209429,0.52211279,2026.1,2025.5,1.23526219]
[1773292209725,0.9879,2026.1,2025.5,1.75616952]
[1773292209926,0.52211279,2026.0,2025.5,1.75616952]
[1773292210304,0.52211279,2026.1,2025.6,0.52090733]
[1773292211226,0.002,2026.0,2025.6,0.52090733]
[1773292211425,0.002,2026.0,2025.9,0.001]
[1773292211623,0.52411279,2026.0,2025.6,0.52090733]
[1773292211928,0.52411279,2026.0,2025.6,0.001]
[1773292212329,0.52211279,2025.9,2025.6,0.001]
[1773292214712,0.002,2026.0,2025.6,0.52190733]
[1773292215324,0.002,2026.0,2025.6,0.001]
[1773292215325,0.52211279,2025.9,2025.6,0.001]
[1773292215548,0.52211279,2025.9,2025.6,0.52190733]
[1773292215745,0.002,2026.0,2025.6,0.52190733]
[1773292217242,0.002,2026.0,2025.7,1.23414128]
[1773292217419,0.002,2026.0,2025.7,1.75504861]
[1773292218869,0.002,2026.0,2025.7,1.23414128]
[1773292219028,0.002,2026.0,2025.7,1.75504861]
[1773292219431,0.002,2026.0,2025.7,0.52090733]
[1773292219630,0.52411279,2026.0,2025.7,0.52090733]
[1773292219846,0.52411279,2026.0,2025.6,1.23514376]
[1773292222447,1.75807517,2026.0,2025.6,0.53058166]
[1773292222655,0.5652884,2025.9,2025.6,0.53058166]
[1773292223534,0.5652884,2025.9,2025.7,0.001]
[1773292226160,0.5652884,2025.8,2025.7,0.001]
[1773292226467,0.5652884,2025.8,2025.6,0.001]
[1773292227259,0.5652884,2025.7,2025.6,0.001]
[1773292229740,1.79942968,2025.7,2025.6,0.001]
[1773292230984,0.5652884,2025.6,2025.5,0.001]
[1773292235891,0.002,2025.8,2025.5,0.53058166]
[1773292237559,0.002,2025.8,2025.5,1.76482366]
[1773292238993,0.002,2025.8,2025.6,0.52958166]
[1773292240318,0.5672884,2025.8,2025.5,1.23525812]
[1773292240516,0.5672884,2025.8,2025.5,0.001]
[1773292241397,0.5672884,2025.8,2025.5,0.53058166]
[1773292242224,0.5672884,2025.8,2025.5,1.7648345]
[1773292242922,0.55775164,2025.9,2025.6,0.57303125]
[1773292243102,1.23596236,2026.0,2025.6,0.57303125]
[1773292243306,1.793714,2026.0,2025.6,0.57303125]
[1773292245228,0.002,2026.0,2025.8,0.57303125]
[1773292245599,0.80906068,2026.2,2025.8,0.57303125]
[1773292247027,0.55975164,2026.2,2025.8,0.57303125]
[1773292247213,0.002,2026.2,2026.0,0.57303125]
[1773292249825,0.002,2026.2,2026.1,1.23389763]
[1773292251035,0.002,2026.2,2026.1,1.79893785]
[1773292251532,0.8108373,2026.4,2026.1,1.79893785]
[1773292251533,0.56915844,2026.5,2026.2,0.56504022]
[1773292251732,4.93613734,2026.7,2026.4,1.79871486]
[1773292251733,0.56915844,2026.7,2026.4,1.79871486]
[1773292252033,0.002,2026.7,2026.4,1.79871486]
[1773292252432,0.56915844,2026.7,2026.4,1.79871486]
[1773292252636,0.56915844,2026.7,2026.4,1.79875368]
[1773292253104,0.56915844,2026.7,2026.4,0.56504022]
[1773292253441,0.56715844,2026.6,2026.0,1.79899875]
[1773292253731,0.56715844,2026.6,2026.0,1.23395853]
[1773292253924,0.56715844,2026.4,2026.0,0.56504022]
[1773292254331,0.56715844,2026.4,2025.8,0.56504022]
[1773292255626,0.56715844,2026.4,2025.9,0.56504022]
[1773292256023,0.56715844,2026.4,2026.0,1.23395853]
[1773292256238,1.80088192,2026.4,2026.0,1.79899875]
[1773292256447,0.56715844,2026.3,2026.0,1.79899875]
[1773292256936,0.56715844,2026.3,2026.0,0.56504022]
[1773292257942,0.56715844,2026.3,2025.9,1.23397256]
[1773292258709,0.56715844,2026.3,2025.9,1.79901278]
[1773292259438,0.56715844,2026.3,2026.2,0.001]
[1773292260239,0.56915844,2026.3,2026.2,0.001]
[1773292260546,0.002,2026.3,2026.2,0.001]
[1773292260715,0.56915844,2026.3,2026.2,0.001]
[1773292262946,0.56715844,2026.2,2025.7,0.56604022]
[1773292263148,0.56715844,2026.2,2025.7,1.80016855]
[1773292263444,0.56715844,2026.2,2025.7,0.56604022]
[1773292263645,0.56715844,2026.2,2025.7,0.001]
[1773292264937,0.56715844,2026.0,2025.7,0.001]
[1773292266244,0.56915844,2026.3,2025.7,0.56604022]
[1773292266547,1.80293973,2026.3,2025.8,0.56504022]
[1773292266749,0.56915844,2026.3,2026.0,0.56504022]
[1773292266914,0.002,2026.3,2026.0,1.79899104]
[1773292268452,0.56915844,2026.6,2026.1,0.56504022]
[1773292268652,0.065536,2027.2,2026.0,1.91051672]
[1773292268653,0.56715844,2027.0,2026.5,0.56504022]
[1773292269041,0.56715844,2027.0,2026.6,1.23359321]
[1773292269243,0.56715844,2027.0,2026.5,1.79864533]
[1773292269551,1.8005132,2027.0,2026.6,0.56504022]
[1773292269873,0.56715844,2027.0,2026.6,0.56504022]
[1773292270163,1.61860446,2027.4,2026.9,0.56504022]
[1773292270164,0.56715844,2027.4,2026.9,0.56504022]
[1773292270662,1.80026515,2027.4,2026.9,0.56504022]
[1773292270846,0.56715844,2027.3,2026.9,0.56504022]
[1773292271022,1.80038653,2027.2,2026.6,0.56504022]
[1773292271223,0.56715844,2027.2,2026.3,0.56504022]
[1773292272556,0.56715844,2027.1,2026.3,0.56504022]
[1773292272862,0.56715844,2027.1,2026.1,7.5302128]
[1773292272863,0.56715844,2026.9,2026.1,1.79889427]
[1773292273063,0.56715844,2026.7,2026.1,1.79889427]
[1773292273358,0.56715844,2026.7,2026.2,0.56504022]
[1773292273726,0.56915844,2027.0,2026.4,0.56504022]
[1773292273950,0.56715844,2026.9,2026.4,0.56504022]
[1773292274351,0.56715844,2026.9,2026.2,0.56504022]
[1773292275064,1.80062992,2026.8,2026.3,1.79881606]
[1773292275656,0.56715844,2026.8,2026.3,1.79881606]
[1773292276356,0.56715844,2026.8,2026.4,0.56504022]
[1773292277164,1.23353234,2026.7,2026.4,0.56504022]
[1773292277363,1.23353234,2026.7,2026.2,1.79885359]
[1773292277364,1.80069078,2026.7,2026.2,1.79885359]
[1773292277581,0.56715844,2026.7,2026.2,1.79885359]
[1773292279483,0.56715844,2026.7,2026.3,0.56504022]
[1773292280190,0.58961349,2026.7,2026.3,0.56504022]
[1773292281461,0.58961349,2026.7,2026.4,1.23371496]
[1773292281658,0.58961349,2026.7,2026.3,1.7987696]
[1773292282787,0.58961349,2026.7,2026.4,0.57445056]
[1773292282991,0.002,2027.0,2026.5,0.57445056]
[1773292282992,0.59161349,2027.0,2026.5,0.57445056]
[1773292283567,0.59161349,2027.0,2026.6,1.23359321]
[1773292283792,0.59161349,2027.0,2026.6,1.80804377]
[1773292284493,0.002,2027.0,2026.7,0.57445056]
[1773292285769,0.59161349,2027.0,2026.7,0.57445056]
[1773292287099,0.59161349,2027.0,2026.6,1.23359321]
[1773292287602,0.59161349,2027.0,2026.6,1.80804377]
[1773292289572,0.58961349,2026.8,2026.4,0.57545056]
[1773292289776,0.58961349,2026.6,2026.4,0.001]
[1773292292207,0.58961349,2026.5,2026.4,0.001]
[1773292295417,1.82326757,2026.5,2026.4,0.001]
[1773292296226,0.58961349,2026.5,2026.4,0.001]
[1773292296523,1.82326757,2026.5,2026.4,0.001]
[1773292296700,0.58961349,2026.5,2026.4,0.001]
[1773292296901,1.82326757,2026.5,2026.4,0.001]
[1773292297822,0.59161349,2026.5,2026.4,0.001]
[1773292300639,1.82526757,2026.5,2026.4,0.001]